bitfinex/quotes_ETHUSD_20241108
["timestamp","ask_amount","ask_price","bid_price","bid_amount"]
[1731080339049,3.0,2944.6,2943.8,0.01]
[1731080339363,3.0,2944.3,2943.5,0.01]
[1731080339524,0.7814,2944.3,2943.5,0.01]
[1731080339723,0.7814,2944.3,2943.4,0.7798]
[1731080339944,3.7814,2944.3,2943.4,0.7798]
[1731080340119,3.7814,2944.3,2943.4,0.01]
[1731080340325,0.7814,2944.3,2943.4,0.01]
[1731080340858,0.7814,2944.3,2943.3,0.01]
[1731080340859,3.7814,2944.3,2943.3,0.01]
[1731080341525,3.7642,2944.8,2943.9,0.01]
[1731080341749,0.715998,2944.7,2944.1,0.01]
[1731080342040,0.66312447,2945.0,2944.1,0.01]
[1731080342242,3.66312447,2945.0,2944.1,0.01]
[1731080342473,0.7642,2945.2,2944.1,0.02]
[1731080343149,0.7642,2945.2,2944.4,0.01]
[1731080343449,0.1392093,2945.4,2944.4,0.01]
[1731080343635,0.1392093,2945.4,2944.9,0.01]
[1731080346026,0.1392093,2945.4,2945.2,0.01]
[1731080346227,0.1392093,2945.4,2945.0,0.01]
[1731080346864,0.1392093,2945.4,2944.7,0.01]
[1731080347052,0.1392093,2945.4,2944.4,0.01]
[1731080347053,3.45313023,2945.4,2944.5,0.01]
[1731080347590,3.0,2945.2,2944.3,0.01]
[1731080347725,3.0,2945.2,2944.3,0.02]
[1731080347929,4.14585028,2945.4,2944.3,0.02]
[1731080348332,3.0,2945.2,2944.1,0.01]
[1731080348670,3.0,2945.1,2944.1,0.01]
[1731080348844,3.3957,2944.9,2943.9,0.8068]
[1731080349267,3.0,2944.8,2943.9,0.8068]
[1731080349981,0.83111903,2945.3,2944.3,0.01]
[1731080350130,0.49769693,2945.2,2944.7,0.01]
[1731080350331,0.1392093,2945.4,2944.7,0.01]
[1731080350978,0.1392093,2945.4,2944.3,0.01]
[1731080350979,3.5344393,2945.4,2944.3,0.01]
[1731080351142,3.39524,2945.3,2944.3,0.01]
[1731080351345,3.0,2945.0,2944.1,0.01]
[1731080351571,0.3,2944.9,2944.1,0.01]
[1731080351772,6.39559,2945.0,2943.9,0.8068]
[1731080351975,3.0,2944.7,2943.7,0.01]
[1731080352137,0.7721,2944.6,2943.7,0.01]
[1731080352637,3.39625,2944.5,2943.5,0.7732]
[1731080352837,3.39625,2944.5,2943.1,0.02]
[1731080352838,3.39627,2944.4,2943.1,0.02]
[1731080353034,3.0,2944.1,2943.1,0.01]
[1731080353482,3.394627,2944.3,2943.1,0.0879484]
[1731080353834,6.791107,2944.3,2943.1,0.0879484]
[1731080354238,0.04000008,2944.2,2943.1,0.01]
[1731080354445,0.04000008,2944.2,2943.1,0.07794839]
[1731080354667,0.05097672,2944.1,2943.1,0.01]
[1731080355265,0.05097672,2944.1,2943.1,0.07794354]
[1731080355473,0.05097672,2944.1,2943.4,0.01]
[1731080355666,0.05097672,2944.1,2943.8,0.7918]
[1731080356096,0.05097672,2944.1,2944.0,0.01]
[1731080356409,0.05097672,2944.1,2943.8,0.8018]
[1731080356765,0.05097672,2944.1,2943.9,0.06792687]
[1731080356969,0.05097672,2944.1,2944.0,0.01]
[1731080357504,0.05097672,2944.1,2943.8,0.8018]
[1731080357669,0.05097672,2944.1,2944.0,0.01]
[1731080358391,0.05097672,2944.1,2944.0,1.3744]
[1731080358567,0.05097672,2944.1,2944.0,1.9697247]
[1731080358765,0.05097672,2944.1,2944.0,1.4197247]
[1731080359107,0.05097672,2944.1,2944.0,1.9697247]
[1731080359661,0.05097672,2944.1,2944.0,14.1657247]
[1731080359864,0.1392093,2945.4,2944.1,0.55]
[1731080360118,0.1392093,2945.4,2944.5,0.006]
[1731080360298,0.1392093,2945.4,2944.7,0.006]
[1731080360606,0.04000008,2945.3,2944.2,0.006]
[1731080360767,0.04000008,2945.3,2944.4,0.006]
[1731080360972,0.04000008,2945.3,2944.2,0.006]
[1731080361500,6.43531008,2945.3,2944.0,0.8144]
[1731080361667,1.75926594,2945.2,2944.0,0.8144]
[1731080361864,0.04000008,2945.1,2944.1,0.06792543]
[1731080362106,0.04000008,2945.1,2944.0,0.8144]
[1731080362468,3.43555008,2945.1,2944.0,0.8144]
[1731080362694,3.0,2944.8,2943.6,0.8204]
[1731080362875,0.67957808,2944.7,2943.6,0.8204]
[1731080363772,0.67957808,2944.7,2943.6,0.8144]
[1731080364802,0.8136,2944.5,2943.4,0.006]
[1731080365012,0.04000008,2944.4,2943.2,0.831]
[1731080365171,0.70859486,2944.4,2943.4,0.006]
[1731080365373,0.70859486,2944.4,2943.4,12.196]
[1731080365699,0.70859486,2944.4,2943.5,0.06793672]
[1731080367784,0.70859486,2944.4,2943.4,12.196]
[1731080368300,0.70859486,2944.4,2943.5,0.06793671]
[1731080368494,0.04000008,2944.4,2943.5,0.06793671]
[1731080368697,5.21741803,2945.3,2943.5,0.06793671]
[1731080368698,0.80280008,2945.0,2943.8,0.006]
[1731080369017,0.9020093,2945.4,2944.3,0.006]
[1731080369314,0.04000008,2945.3,2944.3,0.006]
[1731080369471,0.9020093,2945.4,2944.5,0.006]
[1731080369806,0.9020093,2945.4,2944.7,0.006]
[1731080370010,0.9020093,2945.4,2944.5,0.006]
[1731080370215,0.9020093,2945.4,2944.0,0.55]
[1731080370216,0.9020093,2945.4,2944.3,0.006]
[1731080370384,0.04000008,2945.3,2944.7,0.006]
[1731080370577,0.9020093,2945.4,2944.7,0.006]
[1731080371218,0.1392093,2945.4,2944.7,0.006]
[1731080372313,0.1392093,2945.4,2944.3,0.07390967]
[1731080372492,0.1392093,2945.4,2944.7,0.006]
[1731080372979,0.1392093,2945.4,2944.3,0.06790967]
[1731080372980,0.1392093,2945.4,2944.4,0.006]
[1731080373703,0.04000008,2945.3,2944.2,0.006]
[1731080374012,7.21066,2945.2,2943.9,0.7913]
[1731080374220,0.76506609,2945.1,2944.2,0.006]
[1731080374387,0.04000008,2945.1,2944.2,0.006]
[1731080374990,0.04000008,2945.1,2944.0,0.006]
[1731080375385,0.8153,2944.9,2943.7,12.19]
[1731080375724,3.0,2944.7,2943.5,0.7545]
[1731080375929,0.04000008,2944.6,2943.6,0.07393729]
[1731080376094,0.04000008,2944.6,2943.6,0.006]
[1731080376293,0.04000008,2944.6,2943.5,0.7545]
[1731080376497,0.68480223,2944.1,2943.4,0.006]
[1731080377123,0.04000008,2944.0,2943.2,0.07393737]
[1731080377279,0.04000008,2944.0,2943.2,0.006]
[1731080377487,0.04000008,2944.0,2943.0,0.006]
[1731080379931,3.004,2944.5,2943.4,0.006]
[1731080379932,0.04000008,2944.4,2943.4,0.006]
[1731080380227,0.7806,2944.5,2943.6,0.006]
[1731080380383,1.45157501,2944.5,2943.6,1.37236907]
[1731080380582,1.45157501,2944.5,2943.6,0.07392907]
[1731080380826,1.45157501,2944.5,2943.6,0.006]
[1731080381212,1.45157501,2944.5,2943.6,0.07392908]
[1731080381413,0.04000008,2945.1,2943.6,0.07392908]
[1731080381414,0.7827,2945.0,2944.0,0.006]
[1731080381606,0.7827,2945.0,2944.2,0.006]
[1731080381817,0.82270008,2945.0,2944.4,0.006]
[1731080382282,0.82270008,2945.0,2943.8,0.006]
[1731080382489,0.82270008,2945.0,2944.4,0.006]
[1731080382816,0.82270008,2945.0,2943.8,0.006]
[1731080384448,0.82270008,2945.0,2943.6,0.07392904]
[1731080384582,0.8073,2944.8,2943.4,0.006]
[1731080384785,0.8073,2944.6,2943.2,0.006]
[1731080385093,0.8073,2944.4,2943.2,0.006]
[1731080385311,0.2,2943.8,2943.2,0.006]
[1731080385511,0.2,2943.8,2942.8,0.7716]
[1731080385512,0.8073,2943.7,2942.8,0.7776]
[1731080385812,0.04000008,2943.6,2943.0,0.006]
[1731080385983,0.04000008,2943.6,2942.9,0.06795231]
[1731080386180,0.04000008,2943.6,2942.8,0.7776]
[1731080386181,0.04000008,2943.6,2942.8,0.006]
[1731080386639,0.04000008,2943.6,2942.6,0.006]
[1731080386989,0.04000008,2943.6,2942.4,0.8268]
[1731080386990,0.04000008,2943.6,2942.5,12.19]
[1731080387838,4.77722,2943.5,2942.5,12.19]
[1731080387984,0.8299,2943.1,2942.0,0.006]
[1731080388184,0.8299,2943.1,2941.9,12.19]
[1731080388185,0.6926742,2942.9,2941.9,12.19]
[1731080388505,0.8299,2942.7,2941.9,12.19]
[1731080388824,0.04000008,2942.6,2941.9,12.19]
[1731080389129,0.04000008,2942.9,2942.2,0.006]
[1731080389426,0.8259,2943.1,2942.2,1.2256]
[1731080389589,0.8259,2943.1,2942.2,1.29356676]
[1731080389785,0.8259,2943.1,2942.4,0.006]
[1731080390223,0.8259,2943.1,2942.4,0.0739596]
[1731080390589,0.8259,2943.1,2942.4,0.006]
[1731080390824,0.04000008,2943.0,2942.4,0.006]
[1731080391131,0.09099457,2943.0,2942.4,0.006]
[1731080391331,0.05099449,2943.0,2942.4,0.006]
[1731080391498,0.09099457,2943.0,2942.4,0.006]
[1731080392644,0.09099457,2943.0,2942.1,0.006]
[1731080392930,0.09099457,2943.0,2942.4,0.006]
[1731080393484,0.09099457,2943.0,2942.2,0.006]
[1731080393701,0.09099457,2943.0,2942.0,0.006]
[1731080393925,0.09099457,2943.0,2942.2,0.006]
[1731080394125,0.09099457,2943.0,2942.0,0.006]
[1731080394342,0.09099457,2943.0,2942.2,0.006]
[1731080396045,0.09099457,2943.0,2941.7,0.006]
[1731080396224,0.09099457,2943.0,2941.9,0.006]
[1731080397030,0.81,2942.8,2941.7,0.06797636]
[1731080397230,0.04000008,2942.7,2941.6,12.196]
[1731080397932,0.04000008,2942.7,2941.6,0.006]
[1731080398248,0.8207,2942.6,2941.2,0.006]
[1731080398456,1.3707,2942.4,2941.2,12.196]
[1731080398613,0.04000008,2942.3,2941.4,0.006]
[1731080399320,0.04000008,2942.3,2941.2,12.19]
[1731080399819,0.68709472,2942.2,2941.2,12.19]
[1731080400033,0.04000008,2942.1,2941.2,12.19]
[1731080400254,1.358,2942.0,2940.6,12.196]
[1731080400458,0.808,2941.8,2940.7,12.19]
[1731080400624,0.04000008,2941.7,2940.8,0.006]
[1731080401577,0.04000008,2941.7,2940.9,0.006]
[1731080402581,0.04000008,2941.7,2940.6,0.006]
[1731080402582,0.7543,2941.6,2940.6,0.006]
[1731080402781,0.04000008,2941.5,2940.6,0.006]
[1731080402934,0.7543,2941.6,2940.9,0.006]
[1731080403431,0.7543,2941.6,2941.1,0.006]
[1731080403662,0.7543,2942.1,2941.1,0.006]
[1731080403860,0.7543,2942.1,2940.9,1.29439268]
[1731080403861,0.04000008,2942.0,2940.9,1.29439268]
[1731080404060,0.7543,2941.9,2940.8,0.006]
[1731080404380,0.7543,2941.7,2940.8,0.006]
[1731080404677,0.04000008,2941.6,2940.8,0.006]
[1731080404971,0.04000008,2941.6,2940.6,0.006]
[1731080405149,0.04000008,2941.6,2940.8,0.006]
[1731080405358,0.04000008,2941.6,2940.6,0.006]
[1731080405533,0.04000008,2941.6,2940.8,0.006]
[1731080405854,0.7828,2941.5,2940.6,0.006]
[1731080406168,0.04000008,2941.4,2940.6,0.006]
[1731080406346,0.04000008,2941.4,2940.8,0.006]
[1731080406543,0.04000008,2941.4,2940.6,0.006]
[1731080406748,0.7828,2941.5,2940.9,0.006]
[1731080407048,0.04000008,2941.4,2940.6,0.006]
[1731080407576,0.04000008,2941.4,2940.9,0.006]
[1731080407735,0.04000008,2941.4,2940.6,0.006]
[1731080408166,0.04000008,2941.4,2940.9,0.006]
[1731080408670,0.7828,2941.5,2940.9,0.006]
[1731080408875,0.7828,2941.5,2941.2,0.006]
[1731080409046,0.7565,2941.9,2941.2,0.006]
[1731080409374,0.04000008,2941.8,2941.2,0.006]
[1731080409577,0.7565,2941.9,2941.4,0.006]
[1731080409869,0.7565,2941.9,2940.8,12.19]
[1731080410075,0.04000008,2941.8,2941.2,0.006]
[1731080410563,0.7565,2941.9,2941.2,0.006]
[1731080411072,0.04000008,2941.8,2941.2,0.006]
[1731080413055,0.04000008,2941.6,2940.8,0.006]
[1731080415475,0.7565,2941.7,2941.0,0.006]
[1731080416186,0.7565,2941.7,2941.2,0.006]
[1731080416493,0.7644,2942.1,2941.4,0.006]
[1731080416692,0.04000008,2942.0,2941.4,0.006]
[1731080417507,0.7644,2942.1,2941.4,0.006]
[1731080417792,0.7644,2942.1,2941.8,0.006]
[1731080419960,0.7644,2942.1,2941.5,0.006]
[1731080420283,0.04000008,2942.0,2941.5,0.006]
[1731080421204,0.04000008,2942.0,2941.4,12.19]
[1731080421759,0.04000008,2942.0,2941.2,0.006]
[1731080422393,0.04000008,2942.0,2941.3,0.006]
[1731080422794,0.7644,2942.1,2941.3,0.006]
[1731080423358,0.7644,2942.1,2941.6,0.006]
[1731080425217,0.7644,2942.1,2941.3,0.006]
[1731080425372,0.7644,2942.1,2941.6,0.006]
[1731080425578,0.7644,2942.1,2941.3,0.006]
[1731080425772,0.04000008,2942.0,2941.3,0.006]
[1731080426095,0.04000008,2942.0,2941.0,12.196]
[1731080426483,0.04000008,2942.0,2941.1,0.0679948]
[1731080426796,0.04000008,2942.0,2941.3,0.006]
[1731080428166,0.7644,2942.1,2941.3,0.006]
[1731080428464,0.7644,2942.1,2941.7,0.006]
[1731080429377,0.7952,2942.7,2942.1,0.006]
[1731080429580,0.05099449,2943.0,2942.4,0.006]
[1731080430164,0.05099449,2943.0,2942.2,0.006]
[1731080430384,0.05099449,2943.0,2942.4,0.006]
[1731080432302,0.04000008,2942.9,2942.2,0.006]
[1731080432547,0.2,2942.4,2942.2,0.006]
[1731080432861,0.7543,2942.3,2941.6,0.006]
[1731080432999,0.04000008,2942.2,2941.9,0.006]
[1731080433822,0.04000008,2942.2,2941.6,0.006]
[1731080434544,0.04000008,2942.2,2941.4,0.006]
[1731080434937,0.04000008,2942.2,2941.2,0.006]
[1731080435101,0.55,2942.1,2940.7,0.006]
[1731080435304,0.55,2941.9,2940.7,0.006]
[1731080435643,0.7743,2941.7,2941.1,0.006]
[1731080435807,0.04000008,2941.6,2941.1,0.006]
[1731080436641,0.04000008,2941.6,2940.7,0.07400416]
[1731080437547,0.04000008,2941.6,2940.7,0.006]
[1731080437836,0.04000008,2941.6,2941.1,0.006]
[1731080439954,0.7743,2941.7,2941.1,0.006]
[1731080440161,0.7847,2942.3,2941.3,0.006]
[1731080440463,0.04000008,2942.2,2941.7,0.006]
[1731080440661,0.04000008,2942.2,2941.6,0.006]
[1731080441124,0.04000008,2942.2,2941.7,0.006]
[1731080441721,0.04000008,2942.2,2941.4,12.19]
[1731080441947,0.04000008,2942.2,2941.6,0.006]
[1731080442259,0.04000008,2942.2,2941.7,0.006]
[1731080442561,0.04000008,2942.2,2941.6,0.006]
[1731080442859,0.04000008,2942.2,2941.4,12.19]
[1731080443262,0.04000008,2942.2,2941.6,0.006]
[1731080444965,0.7555,2942.0,2940.9,0.006]
[1731080445171,0.59000008,2941.9,2941.1,0.006]
[1731080445340,0.59000008,2941.9,2941.0,3.24427754]
[1731080445534,0.59000008,2941.9,2941.1,0.006]
[1731080446262,0.04000008,2941.9,2941.3,3.25027754]
[1731080446871,0.04000008,2941.9,2941.3,0.006]
[1731080448255,0.04000008,2941.9,2941.1,3.25027754]
[1731080448637,0.04000008,2941.9,2941.3,0.006]
[1731080448840,0.04000008,2941.9,2941.1,3.24427754]
[1731080449028,0.55,2941.8,2940.8,12.196]
[1731080449230,0.7645,2941.6,2940.8,12.196]
[1731080449466,0.04000008,2941.5,2941.0,0.006]
[1731080450735,0.04000008,2941.5,2940.9,3.24427754]
[1731080451073,0.04000008,2941.5,2941.1,0.006]
[1731080451257,0.7645,2941.6,2941.2,3.24427754]
[1731080453676,0.7645,2941.6,2941.3,0.006]
[1731080456479,0.36339921,2942.6,2941.3,0.006]
[1731080456480,0.8286,2942.1,2941.5,3.24427754]
[1731080456682,0.8286,2942.1,2941.9,3.24427754]
[1731080456973,0.8286,2942.1,2941.6,3.25027754]
[1731080457532,0.04000008,2942.0,2941.6,3.25027754]
[1731080457729,0.04000008,2942.0,2941.6,0.006]
[1731080458179,0.04000008,2942.0,2941.4,12.19]
[1731080458539,0.55,2941.9,2941.4,12.19]
[1731080458745,0.04000008,2941.8,2941.4,12.19]
[1731080459340,0.8262,2941.6,2940.9,3.24427754]
[1731080459644,0.04000008,2941.5,2941.0,0.006]
[1731080460148,0.04000008,2941.5,2941.3,0.006]
[1731080460473,0.8262,2941.6,2941.3,0.006]
[1731080460769,0.8262,2941.6,2941.1,0.006]
[1731080460971,0.8262,2941.6,2941.3,0.006]
[1731080461275,0.04000008,2941.5,2940.7,0.006]
[1731080461574,0.04000008,2941.5,2940.9,0.006]
[1731080461772,0.04000008,2941.5,2941.1,0.006]
[1731080462078,0.04000008,2941.5,2940.9,0.006]
[1731080462660,0.04000008,2941.5,2940.6,0.006]
[1731080462966,0.04000008,2941.5,2940.9,0.006]
[1731080463372,0.8262,2941.6,2940.9,0.07399807]
[1731080463737,0.8262,2941.8,2941.1,0.006]
[1731080464055,0.04000008,2941.7,2941.1,0.006]
[1731080464878,0.04000008,2942.0,2941.5,0.006]
[1731080465372,0.08498687,2942.1,2941.2,0.06798948]
[1731080465546,0.08498687,2942.1,2941.2,1.68657513]
[1731080465749,0.08498687,2942.1,2941.2,1.61858565]
[1731080466047,0.08498687,2942.1,2941.1,15.30826703]
[1731080466247,0.08498687,2942.1,2941.2,0.06798945]
[1731080466560,0.08498687,2942.1,2941.1,3.11826703]
[1731080466761,0.08498687,2942.1,2941.2,0.06798852]
[1731080467687,0.08498687,2942.1,2941.1,3.11826703]
[1731080467863,0.08498687,2942.1,2941.1,3.51105373]
[1731080468048,0.08498687,2942.1,2941.2,0.0679885]
[1731080468255,0.08498687,2942.1,2941.4,3.24427754]
[1731080468549,0.08498561,2942.4,2941.7,4.03697754]
[1731080469601,0.69557355,2942.6,2941.8,0.06798032]
[1731080469808,0.8267,2942.9,2942.0,3.24427754]
[1731080470089,0.08496186,2942.8,2942.0,3.24427754]
[1731080470389,0.75477342,2942.8,2942.1,0.06796973]
[1731080470586,0.75477342,2942.8,2942.0,3.24427754]
[1731080471594,0.75477342,2942.8,2942.1,0.06796971]
[1731080471892,0.75477342,2942.8,2942.0,3.24427754]
[1731080472115,0.05099449,2943.0,2942.2,0.8162]
[1731080472390,0.05099449,2943.0,2942.7,3.24427754]
[1731080474680,0.05099449,2943.0,2942.8,0.06795296]
[1731080474886,0.05099449,2943.0,2942.9,3.24427754]
[1731080475084,0.05099449,2943.0,2942.9,4.05977754]
[1731080475955,0.05099449,2943.0,2942.9,4.46575529]
[1731080476268,0.05099449,2943.0,2942.9,16.65575529]
[1731080477104,2.22543095,2944.9,2943.2,0.8157]
[1731080477402,0.08492606,2945.0,2944.2,0.8057]
[1731080477562,0.08492606,2945.0,2944.2,12.9957]
[1731080478203,4.16866857,2945.1,2944.2,17.86397529]
[1731080478683,4.16866857,2945.1,2944.2,14.61969775]
[1731080478859,4.16866857,2945.1,2944.2,16.23997754]
[1731080479258,0.08489937,2945.3,2944.2,12.9957]
[1731080479498,0.1392093,2945.4,2944.5,3.98215019]
[1731080479696,0.22409548,2945.4,2944.5,3.98215019]
[1731080480675,0.22409548,2945.4,2944.3,12.19]
[1731080480872,0.22409548,2945.4,2944.5,3.98215019]
[1731080481794,0.22409548,2945.4,2944.3,12.19]
[1731080482505,0.55,2945.3,2944.3,12.19]
[1731080482684,0.08490169,2945.2,2944.3,12.19]
[1731080482891,0.8324,2945.0,2944.3,12.19]
[1731080483200,0.08490747,2944.9,2944.3,12.19]
[1731080483895,0.08490747,2944.9,2943.8,3.98215019]
[1731080484597,0.77102219,2944.9,2943.8,3.98215019]
[1731080485391,0.55,2944.8,2943.6,0.7742]
[1731080485669,0.89121916,2944.7,2943.9,3.98215019]
[1731080485887,0.8055,2945.1,2944.3,3.98215019]
[1731080486095,0.08489726,2945.0,2944.3,3.98215019]
[1731080486600,0.08489726,2945.0,2944.1,12.19]
[1731080486964,0.68794816,2944.9,2944.1,12.19]
[1731080487170,0.08491076,2944.8,2944.1,12.19]
[1731080487871,0.7963,2944.6,2943.6,0.7742]
[1731080488066,0.55,2944.4,2943.3,16.17215019]
[1731080488405,0.7851,2944.2,2943.3,16.17215019]
[1731080488609,0.08492952,2944.1,2943.3,16.17215019]
[1731080488765,0.08492952,2944.1,2943.3,12.19]
[1731080489177,0.08492952,2944.1,2943.3,16.17215019]
[1731080489795,0.08492952,2944.1,2943.3,17.78936521]
[1731080490105,1.42117421,2944.8,2943.7,3.98215019]
[1731080490312,0.08491329,2944.7,2943.8,0.06793063]
[1731080490907,0.08491329,2944.7,2943.7,3.98215019]
[1731080491223,3.39605,2944.6,2943.3,16.17215019]
[1731080491504,1.3573,2944.4,2943.3,12.19]
[1731080491703,0.08492655,2944.3,2943.3,12.19]
[1731080492876,0.08492655,2944.3,2943.1,12.19]
[1731080493211,0.7762,2944.1,2943.1,12.19]
[1731080493422,0.08493454,2944.0,2943.1,12.19]
[1731080493722,0.08493454,2944.0,2943.0,0.7957]
[1731080493880,0.08493454,2944.0,2943.1,0.06794761]
[1731080494099,0.08493454,2944.0,2943.0,1.31408279]
[1731080494890,0.08493454,2944.0,2943.3,3.98215019]
[1731080495088,0.7762,2944.1,2943.4,0.06794275]
[1731080495411,0.8325,2944.7,2943.3,3.98215019]
[1731080495614,0.0849128,2944.6,2943.4,12.58821502]
[1731080496500,0.8296,2944.5,2943.4,12.19]
[1731080496797,0.8296,2944.3,2943.4,12.19]
[1731080496998,0.08492924,2944.2,2943.4,12.19]
[1731080498384,0.7622,2944.1,2942.9,3.98215019]
[1731080498615,0.08493666,2944.0,2942.9,3.98215019]
[1731080498821,0.08493666,2944.0,2942.9,5.59936521]
[1731080499026,0.785,2943.9,2942.9,1.61721502]
[1731080499237,0.08494056,2943.8,2942.7,12.19]
[1731080500313,0.55,2943.7,2942.7,12.19]
[1731080500633,0.55,2943.5,2942.2,16.93345019]
[1731080500838,0.7883,2943.2,2942.2,3.98215019]
[1731080501135,0.55,2943.0,2942.1,12.19]
[1731080501290,0.7883,2942.8,2942.1,12.19]
[1731080501498,0.08496657,2942.7,2941.8,4.74345019]
[1731080501815,0.08496657,2942.7,2942.2,3.98215019]
[1731080502536,0.83929409,2942.8,2942.6,3.98215019]
[1731080503133,0.83929409,2942.8,2942.2,3.98215019]
[1731080504212,0.05099409,2942.8,2942.3,0.06796347]
[1731080504445,0.05099409,2942.8,2942.3,0.06796345]
[1731080504597,0.05099409,2942.8,2942.2,3.98215019]
[1731080504939,0.05099409,2942.8,2942.3,0.39821502]
[1731080505925,0.05099409,2942.8,2942.3,0.46618144]
[1731080506334,0.05099409,2942.8,2942.6,3.98215019]
[1731080506502,0.05099409,2942.8,2942.7,0.06795303]
[1731080506736,0.05099409,2942.8,2942.7,12.25795303]
[1731080506934,0.05099409,2942.8,2942.7,12.19]
[1731080509272,0.05099409,2942.8,2942.6,16.17215019]
[1731080509564,0.05099409,2942.8,2942.7,1.69285502]
[1731080513366,0.05099409,2942.8,2942.7,4.93284784]
[1731080513670,0.05099409,2942.8,2942.7,17.19079662]
[1731080513858,0.05099409,2942.8,2942.7,17.12284784]
[1731080515377,0.05099409,2942.8,2942.7,17.86945453]
[1731080515582,0.81,2943.8,2943.3,3.98659951]
[1731080515732,0.81,2943.8,2943.4,0.06793933]
[1731080517274,0.81,2943.8,2942.8,16.98609951]
[1731080517449,0.81,2943.8,2942.9,0.06794546]
[1731080519895,0.81,2943.8,2942.8,5.85449496]
[1731080520961,0.81,2943.8,2942.9,0.06794904]
[1731080521159,0.81,2943.8,2943.2,3.98659951]
[1731080523087,0.81,2943.8,2943.6,3.98659951]
[1731080523409,0.7921,2944.2,2943.7,0.46659647]
[1731080523586,0.7921,2944.2,2943.7,0.06793652]
[1731080523774,0.7921,2944.2,2943.9,3.98659951]
[1731080524160,0.7795,2944.6,2944.0,0.06792922]
[1731080524364,0.7795,2944.6,2944.4,3.98659951]
[1731080524582,0.7795,2945.2,2944.4,3.98659951]
[1731080524774,0.08489761,2945.1,2944.4,3.98659951]
[1731080524998,1.46694438,2945.2,2944.7,3.98659951]
[1731080525441,0.1392093,2945.4,2944.7,3.98659951]
[1731080525442,0.1392093,2945.4,2944.8,0.06790973]
[1731080525700,0.80716183,2945.4,2944.8,0.06790973]
[1731080526603,0.1392093,2945.4,2944.7,3.98659951]
[1731080527922,0.08488485,2945.3,2944.7,3.98659951]
[1731080528602,0.1392093,2945.4,2945.0,3.98659951]
[1731080528811,0.1392093,2945.4,2945.1,0.06790114]
[1731080529014,0.1392093,2945.4,2945.0,3.98659951]
[1731080529442,0.1392093,2945.4,2945.1,0.06790147]
[1731080529883,0.1392093,2945.4,2944.9,12.19]
[1731080530083,0.1392093,2945.4,2944.9,16.17659951]
[1731080531332,0.1392093,2945.4,2944.9,12.19]
[1731080531626,0.1392093,2945.4,2945.0,4.05450575]
[1731080531829,0.1392093,2945.4,2945.2,3.98659951]
[1731080532129,0.1392093,2945.4,2945.3,0.06790295]
[1731080532431,0.1392093,2945.4,2945.2,4.39205009]
[1731080533232,0.1392093,2945.4,2945.1,3.98659951]
[1731080534321,0.1392093,2945.4,2944.9,3.98659951]
[1731080534694,0.1392093,2945.4,2945.0,0.06790454]
[1731080534907,0.1392093,2945.4,2944.9,3.98659951]
[1731080535288,0.1392093,2945.4,2945.0,0.06790454]
[1731080535629,0.9057093,2945.4,2944.9,3.98659951]
[1731080535929,0.08488068,2945.3,2944.2,0.7709]
[1731080536127,0.08488068,2945.3,2943.9,0.69106655]
[1731080536128,1.3543,2945.2,2944.1,0.0679163]
[1731080536300,0.08490139,2945.1,2944.1,0.0679163]
[1731080536714,0.08490139,2945.1,2944.3,3.98659951]
[1731080537112,0.1392093,2945.4,2944.8,0.7955]
[1731080537441,0.1392093,2945.4,2944.9,0.06790403]
[1731080537819,0.1392093,2945.4,2944.8,4.03130352]
[1731080538204,0.1392093,2945.4,2944.9,0.06790402]
[1731080538632,0.1392093,2945.4,2944.8,3.23580352]
[1731080538811,0.1392093,2945.4,2944.6,3.23580352]
[1731080539041,0.1392093,2945.4,2944.7,0.32358035]
[1731080539224,0.7971,2945.3,2944.3,12.19]
[1731080539542,0.7971,2945.1,2944.3,12.19]
[1731080539743,0.08489706,2945.0,2944.3,12.19]
[1731080540521,0.7971,2945.1,2944.4,0.06791948]
[1731080540922,0.7971,2945.1,2944.3,13.80747808]
[1731080541421,0.0848899,2945.0,2944.3,12.19]
[1731080542118,0.0848899,2945.0,2943.9,12.19]
[1731080542119,0.781,2944.9,2943.9,12.19]
[1731080542336,0.8053,2944.7,2943.6,12.19]
[1731080542638,0.55,2944.4,2943.5,12.19]
[1731080542842,0.8053,2944.2,2943.5,12.19]
[1731080543009,0.08492877,2944.1,2943.1,12.19]
[1731080543415,0.8053,2944.0,2943.2,0.067943]
[1731080543611,0.08493283,2943.9,2943.0,3.98478085]
[1731080544056,0.08493283,2943.9,2943.1,0.06794623]
[1731080544852,0.8053,2944.0,2943.1,0.48482271]
[1731080545058,0.8053,2944.0,2943.4,3.98478085]
[1731080545262,0.8053,2944.0,2943.5,0.06793629]
[1731080546180,0.8053,2944.0,2943.4,3.98478085]
[1731080546840,0.8053,2944.0,2943.1,0.48482271]
[1731080547544,0.8053,2944.0,2942.9,0.7955]
[1731080547847,0.8053,2944.0,2943.0,12.25794276]
[1731080548045,0.8053,2944.0,2943.0,12.19]
[1731080548246,0.08492845,2943.9,2943.0,12.19]
[1731080548484,0.08492845,2943.9,2943.1,0.06794276]
[1731080549571,0.84073272,2944.4,2943.2,1.97659428]
[1731080549776,0.84073272,2944.4,2943.1,12.19]
[1731080550091,0.7558,2944.2,2943.1,12.19]
[1731080550390,0.79021702,2944.4,2943.1,12.19]
[1731080550391,0.7847,2944.0,2943.1,12.19]
[1731080550593,0.7847,2943.8,2943.1,12.19]
[1731080550804,0.08494022,2943.9,2942.1,12.19]
[1731080550805,0.7847,2943.5,2942.1,12.19]
[1731080550947,0.7847,2943.3,2942.2,12.19]
[1731080551147,0.7847,2943.1,2942.2,12.19]
[1731080551352,0.08495896,2943.0,2942.2,12.19]
[1731080551773,0.7596,2942.9,2941.7,12.19]